[Event "Early-Titled-Tuesday-Blitz-October-10-2023"]
[Site "Chess.com"]
[Date "2023.10.10"]
[Round "4"]
[White "artooon"]
[Black "lefonghua"]
[Result "1-0"]
[WhiteElo "2995"]
[BlackElo "2606"]
[TimeControl "180+1"]
[EndTime "8:37:43 PDT"]
[Termination "artooon won by resignation"]

1. e4 {[%clk 0:03:00.9]} 1... c5 {[%clk 0:02:57.1]} 2. Nf3 {[%clk 0:03:00.6]}
2... g6 {[%clk 0:02:57.3]} 3. d4 {[%clk 0:03:00.6]} 3... cxd4 {[%clk 0:02:57.7]}
4. Qxd4 {[%clk 0:03:00.8]} 4... Nf6 {[%clk 0:02:57.4]} 5. Bb5 {[%clk 0:03:00.3]}
5... a6 {[%clk 0:02:56.2]} 6. e5 {[%clk 0:03:00.6]} 6... axb5 {[%clk 0:02:56.6]}
7. exf6 {[%clk 0:03:00.9]} 7... Nc6 {[%clk 0:02:57.2]} 8. fxe7 {[%clk
0:03:00.9]} 8... Qxe7+ {[%clk 0:02:52.4]} 9. Qe3 {[%clk 0:03:01.1]} 9... Qxe3+
{[%clk 0:02:36.9]} 10. Bxe3 {[%clk 0:03:01]} 10... Bg7 {[%clk 0:02:37.6]} 11. c3
{[%clk 0:02:41.4]} 11... b4 {[%clk 0:02:35.7]} 12. O-O {[%clk 0:02:40.4]} 12...
O-O {[%clk 0:02:28.2]} 13. Rc1 {[%clk 0:02:37.3]} 13... d5 {[%clk 0:02:21.2]}
14. Nbd2 {[%clk 0:02:36.9]} 14... bxc3 {[%clk 0:02:15.9]} 15. bxc3 {[%clk
0:02:37.8]} 15... Bf5 {[%clk 0:02:12.9]} 16. Nb3 {[%clk 0:02:35.8]} 16... Rfc8
{[%clk 0:02:07.1]} 17. Nfd4 {[%clk 0:02:35.8]} 17... Nxd4 {[%clk 0:02:05.2]} 18.
Nxd4 {[%clk 0:02:34.7]} 18... Bd3 {[%clk 0:02:01.3]} 19. a4 {[%clk 0:02:33.1]}
19... Ra5 {[%clk 0:01:48.6]} 20. Ra3 {[%clk 0:02:25.2]} 20... Rca8 {[%clk
0:01:42.9]} 21. Nb3 {[%clk 0:02:25.5]} 21... R5a6 {[%clk 0:01:27.8]} 22. Nc5
{[%clk 0:02:25.1]} 22... Bf8 {[%clk 0:01:28.3]} 23. Rb3 {[%clk 0:02:19.4]} 23...
Bxc5 {[%clk 0:01:25.8]} 24. Bxc5 {[%clk 0:02:20.3]} 24... Rxa4 {[%clk
0:01:24.7]} 25. h3 {[%clk 0:02:18.9]} 25... b5 {[%clk 0:01:23.8]} 26. Kh2 {[%clk
0:02:13.4]} 26... Ra1 {[%clk 0:01:19.4]} 27. Rxa1 {[%clk 0:02:11.3]} 27... Rxa1
{[%clk 0:01:20.3]} 28. Rb2 {[%clk 0:02:06.8]} 28... Bc4 {[%clk 0:01:13.7]} 29.
Rd2 {[%clk 0:02:05]} 29... Rc1 {[%clk 0:01:09.2]} 30. Bb4 {[%clk 0:01:58.2]}
30... f5 {[%clk 0:01:07.3]} 31. Rd4 {[%clk 0:01:49.8]} 31... Kf7 {[%clk
0:01:06.6]} 32. Rh4 {[%clk 0:01:49.2]} 32... h5 {[%clk 0:01:06.7]} 33. Kg3
{[%clk 0:01:47.4]} 33... Kf6 {[%clk 0:01:03.9]} 34. Rd4 {[%clk 0:01:45.4]} 34...
g5 {[%clk 0:00:56.8]} 35. f4 {[%clk 0:01:45.1]} 35... h4+ {[%clk 0:00:54.8]} 36.
Kf3 {[%clk 0:01:38.4]} 36... Rf1+ {[%clk 0:00:51.7]} 37. Ke3 {[%clk 0:01:37.5]}
37... g4 {[%clk 0:00:52.2]} 38. Rd2 {[%clk 0:01:30]} 38... g3 {[%clk 0:00:37.7]}
39. Bd6 {[%clk 0:01:27.4]} 39... Ke6 {[%clk 0:00:33]} 40. Bc7 {[%clk 0:01:27]}
40... Rg1 {[%clk 0:00:28.1]} 41. Bd8 {[%clk 0:01:24]} 41... Rc1 {[%clk
0:00:26.9]} 42. Kd4 {[%clk 0:01:22.9]} 42... Re1 {[%clk 0:00:18.4]} 43. Bxh4
{[%clk 0:01:21.5]} 43... Re4+ {[%clk 0:00:19.1]} 44. Kc5 {[%clk 0:01:21.7]}
44... Rxf4 {[%clk 0:00:19.4]} 45. Bxg3 {[%clk 0:01:20.8]} 45... Re4 {[%clk
0:00:20.1]} 46. Rd1 {[%clk 0:01:11.4]} 46... Re2 {[%clk 0:00:20.3]} 47. Rg1
{[%clk 0:01:09.7]} 47... Re3 {[%clk 0:00:20.6]} 48. Be1 {[%clk 0:01:09.5]} 48...
Rd3 {[%clk 0:00:19.2]} 49. h4 {[%clk 0:01:09.2]} 49... Rd1 {[%clk 0:00:18.3]}
50. h5 {[%clk 0:01:08.3]} 50... f4 {[%clk 0:00:18.7]} 51. h6 {[%clk 0:01:07.3]}
51... Bd3 {[%clk 0:00:19.3]} 52. Rf1 {[%clk 0:01:05.7]} 52... Bxf1 {[%clk
0:00:19.3]} 53. h7 {[%clk 0:01:05.9]} 53... Rxe1 {[%clk 0:00:18.7]} 54. h8=Q
{[%clk 0:01:06.5]} 54... Re4 {[%clk 0:00:16.9]} 55. Qg8+ {[%clk 0:01:05]} 55...
Kf5 {[%clk 0:00:14.8]} 56. Qf7+ {[%clk 0:01:01.4]} 56... Ke5 {[%clk 0:00:14.8]}
57. Qxd5+ {[%clk 0:01:00.8]} 1-0

[Event "Early-Titled-Tuesday-Blitz-October-10-2023"]
[Site "Chess.com"]
[Date "2023.10.10"]
[Round "4"]
[White "Barmen_EV"]
[Black "Agibileg"]
[Result "0-1"]
[WhiteElo "2487"]
[BlackElo "2695"]
[TimeControl "180+1"]
[EndTime "8:37:43 PDT"]
[Termination "Agibileg won on time"]

1. e4 {[%clk 0:02:57.7]} 1... e5 {[%clk 0:02:59.9]} 2. Nf3 {[%clk 0:02:57.8]}
2... Nc6 {[%clk 0:02:59.9]} 3. d4 {[%clk 0:02:57.1]} 3... exd4 {[%clk
0:02:59.7]} 4. Bc4 {[%clk 0:02:57.8]} 4... Nf6 {[%clk 0:02:58.5]} 5. O-O {[%clk
0:02:58.4]} 5... Nxe4 {[%clk 0:02:55.2]} 6. Nc3 {[%clk 0:02:58.7]} 6... Nxc3
{[%clk 0:02:44.3]} 7. bxc3 {[%clk 0:02:58.3]} 7... d5 {[%clk 0:02:43.3]} 8. Bb5
{[%clk 0:02:50.2]} 8... Be7 {[%clk 0:02:43.4]} 9. cxd4 {[%clk 0:02:50.3]} 9...
O-O {[%clk 0:02:43.2]} 10. c3 {[%clk 0:02:48.7]} 10... Bg4 {[%clk 0:02:43.2]}
11. h3 {[%clk 0:02:40.6]} 11... Bh5 {[%clk 0:02:42.7]} 12. Re1 {[%clk 0:02:39]}
12... Bd6 {[%clk 0:02:38]} 13. Bxc6 {[%clk 0:02:36.7]} 13... bxc6 {[%clk
0:02:38.1]} 14. Qd3 {[%clk 0:02:36.7]} 14... Bg6 {[%clk 0:02:30.3]} 15. Qd1
{[%clk 0:02:32]} 15... Bh5 {[%clk 0:02:29.6]} 16. Qd3 {[%clk 0:02:31.7]} 16...
c5 {[%clk 0:02:29.8]} 17. Ne5 {[%clk 0:02:29]} 17... Bg6 {[%clk 0:02:21.5]} 18.
Qb5 {[%clk 0:02:10.1]} 18... Re8 {[%clk 0:02:15.1]} 19. Bf4 {[%clk 0:02:00.9]}
19... a6 {[%clk 0:02:03.3]} 20. Qa4 {[%clk 0:01:49.1]} 20... Be4 {[%clk
0:01:43.5]} 21. f3 {[%clk 0:01:25.6]} 21... Bf5 {[%clk 0:01:37.7]} 22. Qc6
{[%clk 0:01:06.6]} 22... f6 {[%clk 0:01:05.1]} 23. Nd3 {[%clk 0:00:10.8]} 23...
Bxd3 {[%clk 0:01:00.6]} 24. Bxd6 {[%clk 0:00:09.7]} 24... Rxe1+ {[%clk
0:00:38.9]} 25. Rxe1 {[%clk 0:00:09.5]} 25... cxd6 {[%clk 0:00:39.8]} 26. Qxd5+
{[%clk 0:00:09.6]} 26... Kh8 {[%clk 0:00:39.8]} 27. dxc5 {[%clk 0:00:10.1]}
27... dxc5 {[%clk 0:00:39.4]} 28. Qxc5 {[%clk 0:00:05.8]} 28... Rc8 {[%clk
0:00:37.7]} 29. Qb4 {[%clk 0:00:05.2]} 29... Bc4 {[%clk 0:00:36.9]} 30. Re4
{[%clk 0:00:04.4]} 30... Bxa2 {[%clk 0:00:32.8]} 31. Qa4 {[%clk 0:00:02.2]}
31... Qb6+ {[%clk 0:00:25.4]} 32. Kh2 {[%clk 0:00:02.7]} 32... Bf7 {[%clk
0:00:23.7]} 0-1

[Event "Early-Titled-Tuesday-Blitz-October-10-2023"]
[Site "Chess.com"]
[Date "2023.10.10"]
[Round "4"]
[White "AleksandrAleksikov"]
[Black "MartinMatthiesen"]
[Result "0-1"]
[WhiteElo "2216"]
[BlackElo "2473"]
[TimeControl "180+1"]
[EndTime "8:37:43 PDT"]
[Termination "MartinMatthiesen won on time"]

1. e4 {[%clk 0:03:00.9]} 1... c5 {[%clk 0:02:58.9]} 2. Nf3 {[%clk 0:03:00.1]}
2... d6 {[%clk 0:02:58.9]} 3. d4 {[%clk 0:02:59.2]} 3... cxd4 {[%clk 0:02:59]}
4. Nxd4 {[%clk 0:02:59.3]} 4... Nf6 {[%clk 0:02:59]} 5. Nc3 {[%clk 0:02:59.3]}
5... a6 {[%clk 0:02:58.8]} 6. Be2 {[%clk 0:02:59]} 6... e5 {[%clk 0:02:57.9]} 7.
Nb3 {[%clk 0:02:54.2]} 7... Be7 {[%clk 0:02:57.2]} 8. Bg5 {[%clk 0:02:48.7]}
8... Be6 {[%clk 0:02:54.4]} 9. Bxf6 {[%clk 0:02:44.5]} 9... Bxf6 {[%clk
0:02:55.2]} 10. Qd3 {[%clk 0:02:42.8]} 10... Be7 {[%clk 0:02:40.8]} 11. O-O-O
{[%clk 0:02:38.1]} 11... Nd7 {[%clk 0:02:34.8]} 12. Kb1 {[%clk 0:02:36.4]} 12...
Nf6 {[%clk 0:02:30.7]} 13. f3 {[%clk 0:02:22.1]} 13... h5 {[%clk 0:02:28]} 14.
g3 {[%clk 0:02:20.9]} 14... Qc7 {[%clk 0:02:23.1]} 15. h3 {[%clk 0:02:18.4]}
15... O-O-O {[%clk 0:02:15.1]} 16. f4 {[%clk 0:02:17.1]} 16... d5 {[%clk
0:02:05.8]} 17. exd5 {[%clk 0:01:48.5]} 17... Nxd5 {[%clk 0:01:51.2]} 18. fxe5
{[%clk 0:01:33.6]} 18... Qxe5 {[%clk 0:01:30.2]} 19. Nxd5 {[%clk 0:00:47.2]}
19... Bxd5 {[%clk 0:01:28.8]} 20. Rhe1 {[%clk 0:00:44.6]} 20... Qc7 {[%clk
0:00:38.5]} 21. Qe3 {[%clk 0:00:21.1]} 21... Bf6 {[%clk 0:00:30.6]} 22. Qc5
{[%clk 0:00:08.9]} 22... Qxc5 {[%clk 0:00:20.3]} 23. Nxc5 {[%clk 0:00:08]} 23...
Bc6 {[%clk 0:00:18.6]} 24. Nd3 {[%clk 0:00:06.8]} 24... Rhe8 {[%clk 0:00:17]}
25. Bxh5 {[%clk 0:00:03.8]} 25... Rxe1 {[%clk 0:00:16]} 26. Rxe1 {[%clk
0:00:02.2]} 26... Bd5 {[%clk 0:00:15.9]} 27. Bg4+ {[%clk 0:00:01.9]} 27... Kc7
{[%clk 0:00:15.4]} 28. h4 {[%clk 0:00:01.9]} 28... Bc4 {[%clk 0:00:12.8]} 29.
Nf4 {[%clk 0:00:01.5]} 29... Rd2 {[%clk 0:00:11.6]} 0-1

[Event "Early-Titled-Tuesday-Blitz-October-10-2023"]
[Site "Chess.com"]
[Date "2023.10.10"]
[Round "4"]
[White "seopie"]
[Black "FairChess_on_YouTube"]
[Result "0-1"]
[WhiteElo "2771"]
[BlackElo "3055"]
[TimeControl "180+1"]
[EndTime "8:37:45 PDT"]
[Termination "FairChess_on_YouTube won by resignation"]

1. e4 {[%clk 0:02:59]} 1... c5 {[%clk 0:02:59.5]} 2. Nf3 {[%clk 0:02:59]} 2...
g6 {[%clk 0:02:55.1]} 3. c3 {[%clk 0:02:55.6]} 3... d5 {[%clk 0:02:52.7]} 4.
exd5 {[%clk 0:02:51.4]} 4... Qxd5 {[%clk 0:02:53.6]} 5. Na3 {[%clk 0:02:50.2]}
5... Nf6 {[%clk 0:02:50.3]} 6. Nb5 {[%clk 0:02:44.9]} 6... Qd8 {[%clk
0:02:40.2]} 7. Bc4 {[%clk 0:02:40.5]} 7... Bg7 {[%clk 0:02:32.4]} 8. a4 {[%clk
0:02:36.8]} 8... Nc6 {[%clk 0:02:27.3]} 9. O-O {[%clk 0:02:36.5]} 9... O-O
{[%clk 0:02:26.2]} 10. h3 {[%clk 0:02:36.5]} 10... Na5 {[%clk 0:02:19.3]} 11.
Be2 {[%clk 0:02:32.8]} 11... a6 {[%clk 0:02:08.4]} 12. Na3 {[%clk 0:02:32.1]}
12... Be6 {[%clk 0:02:09]} 13. d4 {[%clk 0:02:27.5]} 13... Nb3 {[%clk
0:02:05.6]} 14. Rb1 {[%clk 0:02:26.2]} 14... cxd4 {[%clk 0:02:05.7]} 15. Nxd4
{[%clk 0:02:25.5]} 15... Nxd4 {[%clk 0:02:03.7]} 16. cxd4 {[%clk 0:02:25.9]}
16... Rc8 {[%clk 0:01:55.4]} 17. Bf3 {[%clk 0:02:12.9]} 17... Bd5 {[%clk
0:01:47.7]} 18. Be3 {[%clk 0:02:09.6]} 18... Qd7 {[%clk 0:01:41.3]} 19. b3
{[%clk 0:02:07.2]} 19... b5 {[%clk 0:01:36.8]} 20. axb5 {[%clk 0:02:06.6]} 20...
axb5 {[%clk 0:01:37.7]} 21. Be2 {[%clk 0:01:55.1]} 21... Qb7 {[%clk 0:01:33.7]}
22. f3 {[%clk 0:01:51.9]} 22... Bc6 {[%clk 0:01:29.2]} 23. Bf2 {[%clk
0:01:49.6]} 23... Nd5 {[%clk 0:01:28.6]} 24. Rc1 {[%clk 0:01:49.4]} 24... b4
{[%clk 0:01:16.9]} 25. Nc4 {[%clk 0:01:47.3]} 25... Nc3 {[%clk 0:01:16.7]} 26.
Qd2 {[%clk 0:01:46.5]} 26... Rfd8 {[%clk 0:01:12.5]} 27. Na5 {[%clk 0:01:42]}
27... Qb6 {[%clk 0:00:56.8]} 28. Nxc6 {[%clk 0:01:40.1]} 28... Rxc6 {[%clk
0:00:52.3]} 29. d5 {[%clk 0:01:33]} 29... Qc7 {[%clk 0:00:52.1]} 30. Bc4 {[%clk
0:01:30.7]} 30... e6 {[%clk 0:00:48.4]} 31. Rfe1 {[%clk 0:01:23.1]} 31... exd5
{[%clk 0:00:44]} 32. Bd3 {[%clk 0:01:23]} 32... h5 {[%clk 0:00:33.3]} 33. Ra1
{[%clk 0:01:21.1]} 33... Qd7 {[%clk 0:00:24.6]} 34. Ra7 {[%clk 0:01:17.8]} 34...
Rc7 {[%clk 0:00:24.5]} 35. Ra6 {[%clk 0:01:15.5]} 35... Rc6 {[%clk 0:00:23.6]}
36. Ra7 {[%clk 0:01:15.5]} 36... Rc7 {[%clk 0:00:24.2]} 37. Ra6 {[%clk
0:01:15.5]} 37... Ne4 {[%clk 0:00:19.4]} 38. fxe4 {[%clk 0:00:59.3]} 38... dxe4
{[%clk 0:00:20.3]} 39. Rxe4 {[%clk 0:00:59.8]} 39... Qxd3 {[%clk 0:00:20.4]} 40.
Re8+ {[%clk 0:00:58.6]} 40... Kh7 {[%clk 0:00:16.4]} 41. Rxd8 {[%clk 0:00:43.6]}
41... Qxa6 {[%clk 0:00:16.3]} 42. Qxb4 {[%clk 0:00:43.8]} 42... Qa1+ {[%clk
0:00:15.6]} 43. Kh2 {[%clk 0:00:43.7]} 43... Be5+ {[%clk 0:00:16.2]} 44. Bg3
{[%clk 0:00:43.8]} 44... Bxg3+ {[%clk 0:00:13.7]} 45. Kxg3 {[%clk 0:00:44.7]}
45... Qe5+ {[%clk 0:00:14]} 46. Kf2 {[%clk 0:00:42.2]} 46... Qf6+ {[%clk
0:00:13.8]} 0-1

[Event "Early-Titled-Tuesday-Blitz-October-10-2023"]
[Site "Chess.com"]
[Date "2023.10.10"]
[Round "4"]
[White "attack2mateU"]
[Black "frederiksvane"]
[Result "0-1"]
[WhiteElo "2723"]
[BlackElo "2894"]
[TimeControl "180+1"]
[EndTime "8:37:48 PDT"]
[Termination "frederiksvane won on time"]

1. e4 {[%clk 0:03:00.9]} 1... c5 {[%clk 0:02:58.5]} 2. Nf3 {[%clk 0:03:00.9]}
2... d6 {[%clk 0:02:59.1]} 3. d4 {[%clk 0:03:00.9]} 3... cxd4 {[%clk 0:03:00]}
4. Nxd4 {[%clk 0:03:01.4]} 4... Nf6 {[%clk 0:03:00.8]} 5. Nc3 {[%clk 0:03:01.6]}
5... Nc6 {[%clk 0:03:01.5]} 6. Bg5 {[%clk 0:03:00]} 6... e6 {[%clk 0:03:01.6]}
7. Qd2 {[%clk 0:02:41.7]} 7... a6 {[%clk 0:03:01]} 8. O-O-O {[%clk 0:02:42.2]}
8... Bd7 {[%clk 0:03:01.5]} 9. f3 {[%clk 0:02:41]} 9... Nxd4 {[%clk 0:03:00.1]}
10. Qxd4 {[%clk 0:02:41.9]} 10... Be7 {[%clk 0:03:00.6]} 11. Kb1 {[%clk
0:02:36.8]} 11... b5 {[%clk 0:02:59.4]} 12. h4 {[%clk 0:02:27.9]} 12... O-O
{[%clk 0:02:51.9]} 13. Qd2 {[%clk 0:02:10]} 13... Qc7 {[%clk 0:02:42.3]} 14. e5
{[%clk 0:01:38.7]} 14... b4 {[%clk 0:02:06.7]} 15. Ne2 {[%clk 0:01:21.4]} 15...
dxe5 {[%clk 0:01:38.7]} 16. Bxf6 {[%clk 0:01:21.3]} 16... Bxf6 {[%clk
0:01:39.6]} 17. Qxd7 {[%clk 0:01:21.4]} 17... Qc5 {[%clk 0:01:38.3]} 18. Qd6
{[%clk 0:00:39.6]} 18... Qf2 {[%clk 0:01:29.1]} 19. Qc6 {[%clk 0:00:26.9]} 19...
Rfd8 {[%clk 0:01:13.9]} 20. Rxd8+ {[%clk 0:00:25.9]} 20... Rxd8 {[%clk 0:01:14]}
21. Nc1 {[%clk 0:00:26.7]} 21... Qe1 {[%clk 0:00:57.2]} 22. g4 {[%clk
0:00:16.4]} 22... h5 {[%clk 0:00:20.5]} 23. Bg2 {[%clk 0:00:16.6]} 23... Qf2
{[%clk 0:00:20.4]} 24. g5 {[%clk 0:00:16.9]} 24... Qxg2 {[%clk 0:00:20.4]} 25.
Re1 {[%clk 0:00:11.9]} 25... Be7 {[%clk 0:00:08]} 26. Nd3 {[%clk 0:00:10.6]}
26... Qg3 {[%clk 0:00:05.7]} 27. Qe4 {[%clk 0:00:01.8]} 27... Rd4 {[%clk
0:00:05]} 28. Qxe5 {[%clk 0:00:02.3]} 28... Qxe5 {[%clk 0:00:05.5]} 29. Rxe5
{[%clk 0:00:01.7]} 29... Rxh4 {[%clk 0:00:06.1]} 30. b3 {[%clk 0:00:01]} 30...
Rh1+ {[%clk 0:00:04.5]} 31. Kb2 {[%clk 0:00:01.2]} 31... h4 {[%clk 0:00:05.2]}
0-1

[Event "Early-Titled-Tuesday-Blitz-October-10-2023"]
[Site "Chess.com"]
[Date "2023.10.10"]
[Round "4"]
[White "kritipatel"]
[Black "Haykoooo0o"]
[Result "0-1"]
[WhiteElo "2127"]
[BlackElo "2445"]
[TimeControl "180+1"]
[EndTime "8:37:52 PDT"]
[Termination "Haykoooo0o won by resignation"]

1. e4 {[%clk 0:03:00.9]} 1... g6 {[%clk 0:02:57.1]} 2. d4 {[%clk 0:03:00.2]}
2... Bg7 {[%clk 0:02:56.4]} 3. f4 {[%clk 0:03:00.3]} 3... d5 {[%clk 0:02:51.5]}
4. e5 {[%clk 0:02:59.1]} 4... Nh6 {[%clk 0:02:47.9]} 5. h3 {[%clk 0:02:57.8]}
5... c5 {[%clk 0:02:46.9]} 6. c3 {[%clk 0:02:50.8]} 6... cxd4 {[%clk 0:02:46.5]}
7. cxd4 {[%clk 0:02:51.7]} 7... Nf5 {[%clk 0:02:43.6]} 8. Nf3 {[%clk 0:02:51.4]}
8... Ng3 {[%clk 0:02:42.8]} 9. Rg1 {[%clk 0:02:47.6]} 9... Nxf1 {[%clk
0:02:43.1]} 10. Rxf1 {[%clk 0:02:47.1]} 10... O-O {[%clk 0:02:42.6]} 11. Nc3
{[%clk 0:02:42.7]} 11... Nc6 {[%clk 0:02:42.9]} 12. Kf2 {[%clk 0:02:42.3]} 12...
b6 {[%clk 0:02:32.6]} 13. Kg1 {[%clk 0:02:41.9]} 13... Ba6 {[%clk 0:02:33.1]}
14. Re1 {[%clk 0:02:26.6]} 14... e6 {[%clk 0:02:25.7]} 15. Qc2 {[%clk
0:02:21.6]} 15... Rc8 {[%clk 0:02:24]} 16. Qf2 {[%clk 0:02:21.7]} 16... Nb4
{[%clk 0:02:21.5]} 17. Rd1 {[%clk 0:02:08.6]} 17... Nd3 {[%clk 0:01:56.1]} 18.
Qg3 {[%clk 0:02:06.4]} 18... Nxc1 {[%clk 0:01:51.7]} 19. Raxc1 {[%clk
0:02:05.8]} 19... Qd7 {[%clk 0:01:47.6]} 20. Ng5 {[%clk 0:01:54.4]} 20... h6
{[%clk 0:01:45.6]} 21. Nf3 {[%clk 0:01:53]} 21... Rc4 {[%clk 0:01:46]} 22. h4
{[%clk 0:01:52]} 22... h5 {[%clk 0:01:44]} 23. Qh3 {[%clk 0:01:43.2]} 23... Rfc8
{[%clk 0:01:42.3]} 24. g4 {[%clk 0:01:43.3]} 24... hxg4 {[%clk 0:01:42.3]} 25.
Qxg4 {[%clk 0:01:44]} 25... Kf8 {[%clk 0:01:13.9]} 26. Kf2 {[%clk 0:01:31.2]}
26... b5 {[%clk 0:01:05.1]} 27. a3 {[%clk 0:01:29.1]} 27... b4 {[%clk
0:01:04.6]} 28. axb4 {[%clk 0:01:28.6]} 28... Rxb4 {[%clk 0:01:05.5]} 29. Rd2
{[%clk 0:01:16.6]} 29... Rcb8 {[%clk 0:01:03.9]} 30. Rcc2 {[%clk 0:01:12.1]}
30... Bc4 {[%clk 0:00:17.5]} 31. Nd1 {[%clk 0:01:03.4]} 31... a5 {[%clk
0:00:16.3]} 32. h5 {[%clk 0:00:54.4]} 32... gxh5 {[%clk 0:00:16.2]} 33. Qxh5
{[%clk 0:00:55.3]} 33... Rb3 {[%clk 0:00:16.8]} 34. Ng5 {[%clk 0:00:53.6]} 34...
a4 {[%clk 0:00:15]} 35. Nh7+ {[%clk 0:00:51.5]} 35... Ke8 {[%clk 0:00:15.2]} 36.
Nf6+ {[%clk 0:00:50.3]} 36... Bxf6 {[%clk 0:00:15.2]} 37. exf6 {[%clk
0:00:50.9]} 37... Kd8 {[%clk 0:00:15.8]} 38. f5 {[%clk 0:00:47.3]} 38... R8b6
{[%clk 0:00:13.4]} 39. Qh8+ {[%clk 0:00:47.4]} 39... Kc7 {[%clk 0:00:13.4]} 40.
Qh2+ {[%clk 0:00:48]} 40... Kb7 {[%clk 0:00:13.3]} 41. fxe6 {[%clk 0:00:46.5]}
41... Rxe6 {[%clk 0:00:14.2]} 42. Qf4 {[%clk 0:00:42.9]} 42... Qc7 {[%clk
0:00:14.3]} 43. Nc3 {[%clk 0:00:36.4]} 43... Qxf4+ {[%clk 0:00:14.1]} 0-1

[Event "Early-Titled-Tuesday-Blitz-October-10-2023"]
[Site "Chess.com"]
[Date "2023.10.10"]
[Round "4"]
[White "Let_it_be_1"]
[Black "Quattroporte300"]
[Result "1-0"]
[WhiteElo "2552"]
[BlackElo "2379"]
[TimeControl "180+1"]
[EndTime "8:37:53 PDT"]
[Termination "Let_it_be_1 won by resignation"]

1. e4 {[%clk 0:03:00.9]} 1... c5 {[%clk 0:02:59.2]} 2. Nf3 {[%clk 0:03:00.6]}
2... Nc6 {[%clk 0:02:59.6]} 3. d4 {[%clk 0:03:00.6]} 3... cxd4 {[%clk
0:02:59.5]} 4. Nxd4 {[%clk 0:03:01.4]} 4... Nf6 {[%clk 0:02:59.9]} 5. Nc3 {[%clk
0:03:00.3]} 5... d6 {[%clk 0:03:00.2]} 6. Be2 {[%clk 0:03:00]} 6... e5 {[%clk
0:02:59.1]} 7. Nb3 {[%clk 0:03:00.2]} 7... Be6 {[%clk 0:02:54.6]} 8. O-O {[%clk
0:02:58.4]} 8... Be7 {[%clk 0:02:55]} 9. f4 {[%clk 0:02:58.5]} 9... exf4 {[%clk
0:02:52.6]} 10. Bxf4 {[%clk 0:02:58.4]} 10... O-O {[%clk 0:02:52.7]} 11. Kh1
{[%clk 0:02:57.1]} 11... Ne5 {[%clk 0:02:51.9]} 12. Qe1 {[%clk 0:02:54.4]} 12...
Rc8 {[%clk 0:02:51.6]} 13. Rd1 {[%clk 0:02:53.7]} 13... Qc7 {[%clk 0:02:36.5]}
14. Qg3 {[%clk 0:02:52.9]} 14... a6 {[%clk 0:02:23.9]} 15. Nd4 {[%clk
0:02:52.5]} 15... Kh8 {[%clk 0:02:15.1]} 16. Bg5 {[%clk 0:02:32.5]} 16... b5
{[%clk 0:02:02.4]} 17. a3 {[%clk 0:02:32.2]} 17... Nc4 {[%clk 0:01:55.6]} 18.
Bxc4 {[%clk 0:01:37.4]} 18... Bxc4 {[%clk 0:01:54.4]} 19. Rf2 {[%clk 0:01:32.2]}
19... d5 {[%clk 0:01:32.9]} 20. Bf4 {[%clk 0:00:55.7]} 20... Qd7 {[%clk
0:00:57.4]} 21. Nf5 {[%clk 0:00:45.3]} 21... Rg8 {[%clk 0:00:52]} 22. Nxe7
{[%clk 0:00:41.9]} 22... Qxe7 {[%clk 0:00:51.4]} 23. exd5 {[%clk 0:00:40.8]}
23... Nh5 {[%clk 0:00:48.5]} 24. Qf3 {[%clk 0:00:36.8]} 24... Nxf4 {[%clk
0:00:48.6]} 25. Qxf4 {[%clk 0:00:37.2]} 25... Qc5 {[%clk 0:00:39.6]} 26. Ne4
{[%clk 0:00:31.8]} 26... Qb6 {[%clk 0:00:16.8]} 27. Nd6 {[%clk 0:00:31.8]} 27...
Rc7 {[%clk 0:00:08.5]} 28. Nxf7+ {[%clk 0:00:31.6]} 28... Rxf7 {[%clk
0:00:08.5]} 29. Qxf7 {[%clk 0:00:32.3]} 29... b4 {[%clk 0:00:06.7]} 30. axb4
{[%clk 0:00:28.9]} 30... Qxb4 {[%clk 0:00:06.7]} 31. b3 {[%clk 0:00:29]} 31...
Bb5 {[%clk 0:00:06.3]} 32. d6 {[%clk 0:00:28.1]} 32... Qg4 {[%clk 0:00:06.6]}
33. Re1 {[%clk 0:00:25.2]} 33... Bd7 {[%clk 0:00:06.6]} 34. h3 {[%clk
0:00:24.5]} 34... Qg3 {[%clk 0:00:06.1]} 35. Qf4 {[%clk 0:00:23.9]} 35... Qxf4
{[%clk 0:00:04.1]} 36. Rxf4 {[%clk 0:00:23.7]} 36... g6 {[%clk 0:00:03.4]} 37.
Rf7 {[%clk 0:00:22.1]} 37... Bf5 {[%clk 0:00:03.2]} 38. d7 {[%clk 0:00:20.7]}
38... Rd8 {[%clk 0:00:03.7]} 39. Re8+ {[%clk 0:00:20.4]} 1-0

[Event "Early-Titled-Tuesday-Blitz-October-10-2023"]
[Site "Chess.com"]
[Date "2023.10.10"]
[Round "4"]
[White "ChainedDowntohell"]
[Black "jcibarra"]
[Result "1-0"]
[WhiteElo "2441"]
[BlackElo "2906"]
[TimeControl "180+1"]
[EndTime "8:37:54 PDT"]
[Termination "ChainedDowntohell won on time"]

1. d4 {[%clk 0:03:00.9]} 1... Nf6 {[%clk 0:02:59.6]} 2. c4 {[%clk 0:02:59.2]}
2... d6 {[%clk 0:02:59.7]} 3. Nf3 {[%clk 0:02:57.5]} 3... g6 {[%clk 0:02:59.8]}
4. Nc3 {[%clk 0:02:55.6]} 4... Bf5 {[%clk 0:02:59.7]} 5. Ng5 {[%clk 0:02:50.1]}
5... Bd7 {[%clk 0:02:59]} 6. e4 {[%clk 0:02:49.1]} 6... e5 {[%clk 0:02:58.5]} 7.
Nf3 {[%clk 0:02:39.3]} 7... exd4 {[%clk 0:02:58]} 8. Nxd4 {[%clk 0:02:39.2]}
8... Bg7 {[%clk 0:02:57.6]} 9. Be2 {[%clk 0:02:38.6]} 9... O-O {[%clk
0:02:57.7]} 10. O-O {[%clk 0:02:38.5]} 10... Re8 {[%clk 0:02:58.4]} 11. f3
{[%clk 0:02:38]} 11... Nc6 {[%clk 0:02:59]} 12. Nc2 {[%clk 0:02:37.6]} 12... Nh5
{[%clk 0:02:58.6]} 13. Be3 {[%clk 0:02:23.3]} 13... f5 {[%clk 0:02:53.5]} 14.
Qd2 {[%clk 0:02:18]} 14... Be5 {[%clk 0:02:22.3]} 15. Bg5 {[%clk 0:02:13.2]}
15... Bf6 {[%clk 0:02:17.1]} 16. f4 {[%clk 0:01:59.8]} 16... Bxg5 {[%clk
0:02:05.2]} 17. fxg5 {[%clk 0:01:59.4]} 17... Ng7 {[%clk 0:02:00.7]} 18. Nd5
{[%clk 0:01:56.8]} 18... Kh8 {[%clk 0:01:58.2]} 19. Nf6 {[%clk 0:01:49.2]} 19...
Rf8 {[%clk 0:01:52]} 20. exf5 {[%clk 0:01:34.9]} 20... Bxf5 {[%clk 0:01:49.9]}
21. Ne3 {[%clk 0:01:33.4]} 21... Be6 {[%clk 0:01:44.2]} 22. Rf4 {[%clk
0:01:30.4]} 22... Ne5 {[%clk 0:01:37.5]} 23. Raf1 {[%clk 0:01:28.3]} 23... Nd7
{[%clk 0:01:29.3]} 24. Neg4 {[%clk 0:01:23.8]} 24... Qe7 {[%clk 0:01:03.6]} 25.
Qe3 {[%clk 0:01:05.5]} 25... Nf5 {[%clk 0:00:55.6]} 26. Qh3 {[%clk 0:00:58.8]}
26... Ne5 {[%clk 0:00:49.4]} 27. b3 {[%clk 0:00:41.1]} 27... h5 {[%clk 0:00:41]}
28. Nxe5 {[%clk 0:00:38.2]} 28... dxe5 {[%clk 0:00:40.7]} 29. Rxf5 {[%clk
0:00:37.9]} 29... Bxf5 {[%clk 0:00:35.6]} 30. Rxf5 {[%clk 0:00:36]} 30... Kg7
{[%clk 0:00:28.4]} 31. Rf1 {[%clk 0:00:35.8]} 31... Rad8 {[%clk 0:00:26.6]} 32.
Qe3 {[%clk 0:00:34.6]} 32... Rd4 {[%clk 0:00:22.8]} 33. Bd3 {[%clk 0:00:32.1]}
33... Rfd8 {[%clk 0:00:20.7]} 34. Be4 {[%clk 0:00:27.5]} 34... Rd1 {[%clk
0:00:18.9]} 35. h3 {[%clk 0:00:23.9]} 35... Rxf1+ {[%clk 0:00:19.3]} 36. Kxf1
{[%clk 0:00:24.8]} 36... Rd1+ {[%clk 0:00:18.4]} 37. Kf2 {[%clk 0:00:24.3]}
37... Ra1 {[%clk 0:00:18.8]} 38. Qd2 {[%clk 0:00:20.7]} 38... Qd6 {[%clk
0:00:17.8]} 39. Ne8+ {[%clk 0:00:19.3]} 1-0